[Event "December 12 Early 2023"]
[Site "https://www.chess.com"]
[Date "2023.12.12"]
[Round "9"]
[White "Kislinsky, Alexey"]
[Black "Berezin, Viktor"]
[Result "1-0"]
[Board "63"]
[TimeControl "180+1"]
[WhiteFideId "14108801"]
[BlackFideId "14107872"]
[WhiteElo "2651"]
[BlackElo "2507"]
[WhiteTeam "CZE"]
[BlackTeam "UKR"]
[WhiteClock "0:02:19"]
[BlackClock "0:01:18"]

1. e4 {[%clk 0:03:00]}  g6 {[%clk 0:02:52]} 2. d4 {[%clk 0:03:00]}  Bg7 {[%clk 0:02:52]} 3. Nf3 {[%clk 0:03:00]}  d6 {[%clk 0:02:53]} 4. h3 {[%clk 0:03:00]}  Nc6 {[%clk 0:02:48]} 5. Nc3 {[%clk 0:02:56]}  e5 {[%clk 0:02:42]} 6. dxe5 {[%clk 0:02:57]}  Nxe5 {[%clk 0:02:38]} 7. Nxe5 {[%clk 0:02:56]}  Bxe5 {[%clk 0:02:38]} 8. Bd3 {[%clk 0:02:57]}  Ne7 {[%clk 0:02:37]} 9. Bh6 {[%clk 0:02:54]}  Nc6 {[%clk 0:02:36]} 10. O-O {[%clk 0:02:53]}  Be6 {[%clk 0:02:31]} 11. f4 {[%clk 0:02:40]}  Bd4+ {[%clk 0:01:57]} 12. Kh1 {[%clk 0:02:40]}  f6 {[%clk 0:01:52]} 13. Nd5 {[%clk 0:02:26]}  Ne7 {[%clk 0:01:34]} 14. Bb5+ {[%clk 0:02:23]}  Kf7 {[%clk 0:01:20]} 15. Qxd4 {[%clk 0:02:21]}  c6 {[%clk 0:01:18]} 16. Qxf6+ {[%clk 0:02:19]} 1-0

[Event "December 12 Early 2023"]
[Site "https://www.chess.com"]
[Date "2023.12.12"]
[Round "9"]
[White "Antunez Soler, Luis"]
[Black "Lopez Idarraga, Daniel Eduardo"]
[Result "1-0"]
[Board "66"]
[TimeControl "180+1"]
[WhiteFideId "3513335"]
[BlackFideId "4405501"]
[WhiteElo "2626"]
[BlackElo "2471"]
[WhiteTeam "CUB"]
[BlackTeam "COL"]
[WhiteClock "0:01:59"]
[BlackClock "0:02:19"]

1. e4 {[%clk 0:03:00]}  d5 {[%clk 0:02:59]} 2. exd5 {[%clk 0:02:59]}  Nf6 {[%clk 0:02:59]} 3. Nc3 {[%clk 0:03:00]}  Nxd5 {[%clk 0:02:59]} 4. Nf3 {[%clk 0:03:00]}  g6 {[%clk 0:03:00]} 5. Bc4 {[%clk 0:03:00]}  Nxc3 {[%clk 0:02:59]} 6. bxc3 {[%clk 0:02:47]}  Bh6 {[%clk 0:02:59]} 7. d4 {[%clk 0:02:47]}  Bxc1 {[%clk 0:02:59]} 8. Qxc1 {[%clk 0:02:48]}  Bf5 {[%clk 0:02:45]} 9. Qh6 {[%clk 0:02:40]}  Qd6 {[%clk 0:02:34]} 10. Ng5 {[%clk 0:02:16]}  e6 {[%clk 0:02:30]} 11. Nxh7 {[%clk 0:02:01]}  Qe7 {[%clk 0:02:19]} 12. Qg7 {[%clk 0:01:59]} 1-0

[Event "December 12 Early 2023"]
[Site "https://www.chess.com"]
[Date "2023.12.12"]
[Round "9"]
[White "Dyulgerov, Volen"]
[Black "Kavyev, Ruslan"]
[Result "1-0"]
[Board "68"]
[TimeControl "180+1"]
[WhiteFideId "2918978"]
[BlackFideId "34110981"]
[WhiteElo "2431"]
[BlackElo "2602"]
[WhiteTeam "BUL"]
[BlackTeam "RUS"]
[WhiteClock "0:02:25"]
[BlackClock "0:02:27"]

1. e4 {[%clk 0:03:00]}  c5 {[%clk 0:02:51]} 2. Nf3 {[%clk 0:02:52]}  d6 {[%clk 0:02:49]} 3. d4 {[%clk 0:02:53]}  cxd4 {[%clk 0:02:49]} 4. c3 {[%clk 0:02:53]}  Nf6 {[%clk 0:02:47]} 5. Bd3 {[%clk 0:02:53]}  Nc6 {[%clk 0:02:43]} 6. cxd4 {[%clk 0:02:48]}  d5 {[%clk 0:02:41]} 7. e5 {[%clk 0:02:48]}  Ne4 {[%clk 0:02:41]} 8. Nc3 {[%clk 0:02:43]}  Nxc3 {[%clk 0:02:40]} 9. bxc3 {[%clk 0:02:43]}  Bg4 {[%clk 0:02:41]} 10. e6 {[%clk 0:02:28]}  Bxe6 {[%clk 0:02:40]} 11. Ng5 {[%clk 0:02:28]}  Bd7 {[%clk 0:02:36]} 12. Qf3 {[%clk 0:02:24]}  f6 {[%clk 0:02:31]} 13. Qh5+ {[%clk 0:02:23]}  g6 {[%clk 0:02:27]} 14. Qxg6+ {[%clk 0:02:24]}  hxg6 {[%clk 0:02:27]} 15. Bxg6# {[%clk 0:02:25]} 1-0

[Event "December 12 Early 2023"]
[Site "https://www.chess.com"]
[Date "2023.12.12"]
[Round "9"]
[White "Mishra, Manoj"]
[Black "Yeremyan, Alen"]
[Result "0-1"]
[Board "71"]
[TimeControl "180+1"]
[WhiteFideId "5006007"]
[BlackFideId "13308998"]
[WhiteElo "2289"]
[BlackElo "2802"]
[WhiteTeam "IND"]
[BlackTeam "ARM"]
[WhiteClock "0:00:00"]
[BlackClock "0:01:51"]

1. d4 {[%clk 0:02:59]}  Nf6 {[%clk 0:03:00]} 2. Bg5 {[%clk 0:02:53]}  Ne4 {[%clk 0:03:00]} 3. h4 {[%clk 0:02:53]}  d5 {[%clk 0:03:00]} 4. Nd2 {[%clk 0:02:51]}  c5 {[%clk 0:03:00]} 5. Nxe4 {[%clk 0:02:45]}  dxe4 {[%clk 0:03:00]} 6. dxc5 {[%clk 0:02:45]}  Qa5+ {[%clk 0:03:00]} 7. Qd2 {[%clk 0:02:36]}  Qxc5 {[%clk 0:03:00]} 8. O-O-O {[%clk 0:02:36]}  Nc6 {[%clk 0:03:00]} 9. f3 {[%clk 0:02:19]}  Be6 {[%clk 0:02:59]} 10. fxe4 {[%clk 0:02:11]}  Rd8 {[%clk 0:02:58]} 11. Qc3 {[%clk 0:01:54]}  Rxd1+ {[%clk 0:02:53]} 12. Kxd1 {[%clk 0:01:55]}  Qxc3 {[%clk 0:02:39]} 13. bxc3 {[%clk 0:01:55]}  Bxa2 {[%clk 0:02:40]} 14. Nf3 {[%clk 0:01:51]}  Bc4 {[%clk 0:02:39]} 15. e3 {[%clk 0:01:20]}  Bxf1 {[%clk 0:02:39]} 16. Rxf1 {[%clk 0:01:21]}  f6 {[%clk 0:02:40]} 17. Bf4 {[%clk 0:01:20]}  e5 {[%clk 0:02:41]} 18. Bg3 {[%clk 0:01:19]}  Bc5 {[%clk 0:02:41]} 19. Ke2 {[%clk 0:01:19]}  Ke7 {[%clk 0:02:42]} 20. h5 {[%clk 0:01:15]}  Rd8 {[%clk 0:02:41]} 21. Bh4 {[%clk 0:01:08]}  Ke6 {[%clk 0:02:40]} 22. Nd2 {[%clk 0:01:05]}  a5 {[%clk 0:02:36]} 23. h6 {[%clk 0:01:05]}  g5 {[%clk 0:02:35]} 24. Bg3 {[%clk 0:00:54]}  a4 {[%clk 0:02:36]} 25. Rb1 {[%clk 0:00:43]}  a3 {[%clk 0:02:36]} 26. Nb3 {[%clk 0:00:43]}  Be7 {[%clk 0:02:35]} 27. c4 {[%clk 0:00:40]}  Nb4 {[%clk 0:02:33]} 28. Rc1 {[%clk 0:00:34]}  Na2 {[%clk 0:02:33]} 29. Ra1 {[%clk 0:00:28]}  Nc3+ {[%clk 0:02:32]} 30. Kf1 {[%clk 0:00:28]}  Nxe4 {[%clk 0:02:31]} 31. Be1 {[%clk 0:00:27]}  Rc8 {[%clk 0:02:29]} 32. c5 {[%clk 0:00:27]}  Nxc5 {[%clk 0:02:25]} 33. Rxa3 {[%clk 0:00:22]}  Nxb3 {[%clk 0:02:24]} 34. Rxb3 {[%clk 0:00:23]}  Rxc2 {[%clk 0:02:24]} 35. Rxb7 {[%clk 0:00:20]}  g4 {[%clk 0:02:25]} 36. e4 {[%clk 0:00:12]}  Rc4 {[%clk 0:02:22]} 37. Rb6+ {[%clk 0:00:11]}  Kf7 {[%clk 0:02:22]} 38. Rb7 {[%clk 0:00:12]}  Rxe4 {[%clk 0:02:22]} 39. Ba5 {[%clk 0:00:11]}  Rd4 {[%clk 0:02:22]} 40. Bb6 {[%clk 0:00:10]}  Rd5 {[%clk 0:02:19]} 41. Be3 {[%clk 0:00:03]}  Ke6 {[%clk 0:02:03]} 42. Kf2 {[%clk 0:00:02]}  f5 {[%clk 0:02:02]} 43. Bc1 {[%clk 0:00:01]}  f4 {[%clk 0:02:00]} 44. Bb2 {[%clk 0:00:01]}  Rd2+ {[%clk 0:01:55]} 45. Kf1 {[%clk 0:00:01]}  e4 {[%clk 0:01:51]} 46. Bc3 {[%clk 0:00:00]}  Rc2 {[%clk 0:01:51]} 0-1

[Event "December 12 Early 2023"]
[Site "https://www.chess.com"]
[Date "2023.12.12"]
[Round "9"]
[White "Brodsky, David"]
[Black "Yashmetov, Mikhail"]
[Result "1-0"]
[Board "72"]
[TimeControl "180+1"]
[WhiteFideId "2073250"]
[BlackFideId "24198900"]
[WhiteElo "2789"]
[BlackElo "2502"]
[WhiteTeam "USA"]
[BlackTeam "RUS"]
[WhiteClock "0:02:12"]
[BlackClock "0:02:14"]

1. d4 {[%clk 0:03:00]}  Nf6 {[%clk 0:02:57]} 2. Nf3 {[%clk 0:03:01]}  e6 {[%clk 0:02:56]} 3. g3 {[%clk 0:02:58]}  b6 {[%clk 0:02:56]} 4. Bg2 {[%clk 0:02:58]}  Bb7 {[%clk 0:02:57]} 5. O-O {[%clk 0:02:58]}  Be7 {[%clk 0:02:57]} 6. c4 {[%clk 0:02:58]}  O-O {[%clk 0:02:58]} 7. Nc3 {[%clk 0:02:54]}  Ne4 {[%clk 0:02:50]} 8. Bd2 {[%clk 0:02:54]}  Nxd2 {[%clk 0:02:43]} 9. Qxd2 {[%clk 0:02:54]}  f5 {[%clk 0:02:40]} 10. d5 {[%clk 0:02:48]}  Bf6 {[%clk 0:02:38]} 11. Rad1 {[%clk 0:02:42]}  e5 {[%clk 0:02:36]} 12. e4 {[%clk 0:02:38]}  fxe4 {[%clk 0:02:26]} 13. Nxe4 {[%clk 0:02:37]}  d6 {[%clk 0:02:26]} 14. Nfg5 {[%clk 0:02:29]}  g6 {[%clk 0:02:24]} 15. Ne6 {[%clk 0:02:28]}  Qe7 {[%clk 0:02:24]} 16. Nxf8 {[%clk 0:02:26]}  Qxf8 {[%clk 0:02:25]} 17. f4 {[%clk 0:02:21]}  Qg7 {[%clk 0:02:20]} 18. Nxf6+ {[%clk 0:02:18]}  Qxf6 {[%clk 0:02:21]} 19. fxe5 {[%clk 0:02:19]}  Qxe5 {[%clk 0:02:21]} 20. Rde1 {[%clk 0:02:18]}  Qh5 {[%clk 0:02:15]} 21. Re8+ {[%clk 0:02:16]}  Kg7 {[%clk 0:02:15]} 22. Qd4+ {[%clk 0:02:12]}  Kh6 {[%clk 0:02:14]} 23. Qf4+ {[%clk 0:02:12]}  Qg5 {[%clk 0:02:13]} 24. Qf8+ {[%clk 0:02:12]}  Kh5 {[%clk 0:02:13]} 25. Bf3+ {[%clk 0:02:12]}  Qg4 {[%clk 0:02:13]} 26. Bxg4+ {[%clk 0:02:12]}  Kxg4 {[%clk 0:02:14]} 27. Qf4+ {[%clk 0:02:12]}  Kh3 {[%clk 0:02:14]} 28. Qh4# {[%clk 0:02:12]} 1-0

[Event "December 12 Early 2023"]
[Site "https://www.chess.com"]
[Date "2023.12.12"]
[Round "9"]
[White "Kotyk, Michael"]
[Black "Hua, Lefong"]
[Result "0-1"]
[Board "75"]
[TimeControl "180+1"]
[WhiteFideId "16214501"]
[BlackFideId "2602253"]
[WhiteElo "2470"]
[BlackElo "2660"]
[WhiteTeam "GER"]
[BlackTeam "CAN"]
[WhiteClock "0:00:11"]
[BlackClock "0:01:19"]

1. e4 {[%clk 0:02:54]}  c5 {[%clk 0:02:59]} 2. c3 {[%clk 0:02:52]}  Nf6 {[%clk 0:02:59]} 3. e5 {[%clk 0:02:52]}  Nd5 {[%clk 0:03:00]} 4. Bc4 {[%clk 0:02:53]}  Nb6 {[%clk 0:03:00]} 5. Bb3 {[%clk 0:02:53]}  Nc6 {[%clk 0:03:00]} 6. Nf3 {[%clk 0:02:53]}  d6 {[%clk 0:03:00]} 7. exd6 {[%clk 0:02:46]}  Qxd6 {[%clk 0:03:01]} 8. Na3 {[%clk 0:02:45]}  a6 {[%clk 0:02:53]} 9. d4 {[%clk 0:02:44]}  cxd4 {[%clk 0:02:53]} 10. Nxd4 {[%clk 0:02:42]}  Nxd4 {[%clk 0:02:52]} 11. cxd4 {[%clk 0:02:42]}  Be6 {[%clk 0:02:48]} 12. O-O {[%clk 0:02:41]}  Bxb3 {[%clk 0:02:47]} 13. Qxb3 {[%clk 0:02:41]}  e6 {[%clk 0:02:48]} 14. Bd2 {[%clk 0:01:28]}  Be7 {[%clk 0:02:34]} 15. Ba5 {[%clk 0:01:27]}  Nd5 {[%clk 0:02:35]} 16. Nc4 {[%clk 0:01:19]}  Qd7 {[%clk 0:02:28]} 17. a4 {[%clk 0:01:09]}  O-O {[%clk 0:02:12]} 18. Ne5 {[%clk 0:01:09]}  Qd6 {[%clk 0:02:10]} 19. Qxb7 {[%clk 0:00:41]}  Rab8 {[%clk 0:01:55]} 20. Qc6 {[%clk 0:00:41]}  Rfc8 {[%clk 0:01:44]} 21. Qxd6 {[%clk 0:00:38]}  Bxd6 {[%clk 0:01:45]} 22. Nd3 {[%clk 0:00:35]}  Rb3 {[%clk 0:01:39]} 23. Rfd1 {[%clk 0:00:30]}  h5 {[%clk 0:01:29]} 24. g3 {[%clk 0:00:28]}  Rc4 {[%clk 0:01:24]} 25. Rac1 {[%clk 0:00:11]}  Rxd3 {[%clk 0:01:20]} 26. Rxc4 {[%clk 0:00:10]}  Rxd1+ {[%clk 0:01:19]} 27. Kg2 {[%clk 0:00:11]} 0-1

[Event "December 12 Early 2023"]
[Site "https://www.chess.com"]
[Date "2023.12.12"]
[Round "9"]
[White "Kiremitciyan, Ari"]
[Black "Schnaider, Ilan"]
[Result "0-1"]
[Board "76"]
[TimeControl "180+1"]
[WhiteFideId "6373445"]
[BlackFideId "169013"]
[WhiteElo "2464"]
[BlackElo "2654"]
[WhiteTeam "TUR"]
[BlackTeam "ARG"]
[WhiteClock "0:00:00"]
[BlackClock "0:00:02"]

1. e4 {[%clk 0:03:00]}  c5 {[%clk 0:02:59]} 2. Nf3 {[%clk 0:03:00]}  d6 {[%clk 0:02:59]} 3. c3 {[%clk 0:03:00]}  Nf6 {[%clk 0:02:56]} 4. h3 {[%clk 0:03:00]}  Nc6 {[%clk 0:02:46]} 5. Bd3 {[%clk 0:03:00]}  e6 {[%clk 0:02:44]} 6. Bc2 {[%clk 0:02:59]}  d5 {[%clk 0:02:45]} 7. e5 {[%clk 0:02:58]}  Nd7 {[%clk 0:02:45]} 8. d4 {[%clk 0:02:56]}  Qb6 {[%clk 0:02:45]} 9. a3 {[%clk 0:02:53]}  cxd4 {[%clk 0:02:43]} 10. cxd4 {[%clk 0:02:54]}  a5 {[%clk 0:02:41]} 11. Nc3 {[%clk 0:02:51]}  Be7 {[%clk 0:02:39]} 12. O-O {[%clk 0:02:48]}  f6 {[%clk 0:02:35]} 13. exf6 {[%clk 0:02:42]}  Nxf6 {[%clk 0:02:30]} 14. Re1 {[%clk 0:02:34]}  O-O {[%clk 0:02:24]} 15. Qd3 {[%clk 0:02:19]}  g6 {[%clk 0:01:51]} 16. Bh6 {[%clk 0:01:35]}  Re8 {[%clk 0:01:40]} 17. Ba4 {[%clk 0:01:22]}  Bd7 {[%clk 0:01:35]} 18. Bxc6 {[%clk 0:01:22]}  bxc6 {[%clk 0:01:35]} 19. Ne5 {[%clk 0:01:22]}  Bf8 {[%clk 0:01:34]} 20. Bxf8 {[%clk 0:01:19]}  Rxf8 {[%clk 0:01:33]} 21. Na4 {[%clk 0:01:00]}  Qc7 {[%clk 0:00:42]} 22. Nc5 {[%clk 0:00:58]}  Bc8 {[%clk 0:00:41]} 23. b3 {[%clk 0:00:53]}  Nh5 {[%clk 0:00:29]} 24. g3 {[%clk 0:00:46]}  Qg7 {[%clk 0:00:27]} 25. Qe3 {[%clk 0:00:43]}  Nf6 {[%clk 0:00:18]} 26. Nxc6 {[%clk 0:00:41]}  Re8 {[%clk 0:00:17]} 27. Ne5 {[%clk 0:00:40]}  Ba6 {[%clk 0:00:17]} 28. Rac1 {[%clk 0:00:39]}  Bb5 {[%clk 0:00:12]} 29. Rc3 {[%clk 0:00:38]}  a4 {[%clk 0:00:11]} 30. b4 {[%clk 0:00:37]}  Rac8 {[%clk 0:00:10]} 31. Rec1 {[%clk 0:00:36]}  Qe7 {[%clk 0:00:09]} 32. Qg5 {[%clk 0:00:31]}  Kg7 {[%clk 0:00:08]} 33. Re3 {[%clk 0:00:24]}  Qd6 {[%clk 0:00:06]} 34. Rce1 {[%clk 0:00:22]}  Rcd8 {[%clk 0:00:02]} 35. Rf3 {[%clk 0:00:18]}  Qf8 {[%clk 0:00:02]} 36. Ng4 {[%clk 0:00:15]}  Ne4 {[%clk 0:00:02]} 37. Qe3 {[%clk 0:00:12]}  Qd6 {[%clk 0:00:02]} 38. Nxe4 {[%clk 0:00:10]}  dxe4 {[%clk 0:00:03]} 39. Qxe4 {[%clk 0:00:11]}  Bc6 {[%clk 0:00:04]} 40. Qe5+ {[%clk 0:00:12]}  Qxe5 {[%clk 0:00:04]} 41. Nxe5 {[%clk 0:00:12]}  Bxf3 {[%clk 0:00:05]} 42. Nxf3 {[%clk 0:00:13]}  Rc8 {[%clk 0:00:05]} 43. Ng5 {[%clk 0:00:04]}  Kf6 {[%clk 0:00:02]} 44. Ne4+ {[%clk 0:00:04]}  Kg7 {[%clk 0:00:02]} 45. Nc5 {[%clk 0:00:05]}  Rc6 {[%clk 0:00:02]} 46. d5 {[%clk 0:00:04]}  Rd6 {[%clk 0:00:02]} 47. dxe6 {[%clk 0:00:05]}  Rd4 {[%clk 0:00:02]} 48. Re3 {[%clk 0:00:02]}  Kf6 {[%clk 0:00:02]} 49. h4 {[%clk 0:00:02]}  h5 {[%clk 0:00:02]} 50. Rf3+ {[%clk 0:00:02]}  Kg7 {[%clk 0:00:02]} 51. Rf7+ {[%clk 0:00:02]}  Kh6 {[%clk 0:00:03]} 52. Ra7 {[%clk 0:00:03]}  Rc4 {[%clk 0:00:03]} 53. Rxa4 {[%clk 0:00:03]}  Rc1+ {[%clk 0:00:03]} 54. Kg2 {[%clk 0:00:03]}  Rc2 {[%clk 0:00:04]} 55. Ra7 {[%clk 0:00:02]}  Rf8 {[%clk 0:00:05]} 56. Rf7 {[%clk 0:00:03]}  Re8 {[%clk 0:00:05]} 57. Rf4 {[%clk 0:00:03]}  Rc3 {[%clk 0:00:04]} 58. Rf3 {[%clk 0:00:03]}  Rc2 {[%clk 0:00:05]} 59. Rf4 {[%clk 0:00:04]}  Ra2 {[%clk 0:00:05]} 60. Rf3 {[%clk 0:00:05]}  Rc2 {[%clk 0:00:04]} 61. Rb3 {[%clk 0:00:05]}  Rd8 {[%clk 0:00:04]} 62. Re3 {[%clk 0:00:05]}  Rc1 {[%clk 0:00:04]} 63. e7 {[%clk 0:00:06]}  Re8 {[%clk 0:00:05]} 64. Nd7 {[%clk 0:00:05]}  Rc6 {[%clk 0:00:04]} 65. Nc5 {[%clk 0:00:05]}  Rc7 {[%clk 0:00:04]} 66. Ne6 {[%clk 0:00:05]}  Rcxe7 {[%clk 0:00:04]} 67. Ng5 {[%clk 0:00:04]}  Rxe3 {[%clk 0:00:04]} 68. fxe3 {[%clk 0:00:05]}  Rxe3 {[%clk 0:00:04]} 69. a4 {[%clk 0:00:04]}  Rb3 {[%clk 0:00:05]} 70. b5 {[%clk 0:00:04]}  Rb4 {[%clk 0:00:05]} 71. Nf7+ {[%clk 0:00:03]}  Kg7 {[%clk 0:00:05]} 72. Nd6 {[%clk 0:00:03]}  Rxa4 {[%clk 0:00:05]} 73. b6 {[%clk 0:00:03]}  Rb4 {[%clk 0:00:06]} 74. b7 {[%clk 0:00:04]}  Rb6 {[%clk 0:00:06]} 75. Kf3 {[%clk 0:00:03]}  Kf6 {[%clk 0:00:04]} 76. Ke4 {[%clk 0:00:04]}  Ke6 {[%clk 0:00:04]} 77. Ne8 {[%clk 0:00:01]}  Rxb7 {[%clk 0:00:03]} 78. Kf4 {[%clk 0:00:01]}  Ke7 {[%clk 0:00:01]} 79. Ng7 {[%clk 0:00:00]}  Kf7 {[%clk 0:00:02]} 0-1

[Event "December 12 Early 2023"]
[Site "https://www.chess.com"]
[Date "2023.12.12"]
[Round "9"]
[White "Ambartsumova, Karina"]
[Black "Pak, Yevgeniy"]
[Result "0-1"]
[Board "77"]
[TimeControl "180+1"]
[WhiteFideId "4166299"]
[BlackFideId "14201712"]
[WhiteElo "2631"]
[BlackElo "2464"]
[WhiteTeam "RUS"]
[BlackTeam "KAZ"]
[WhiteClock "0:00:28"]
[BlackClock "0:00:44"]

1. d4 {[%clk 0:03:00]}  d5 {[%clk 0:02:58]} 2. c4 {[%clk 0:03:01]}  e6 {[%clk 0:02:59]} 3. Nc3 {[%clk 0:03:01]}  h6 {[%clk 0:02:59]} 4. Nf3 {[%clk 0:03:00]}  Nf6 {[%clk 0:02:58]} 5. cxd5 {[%clk 0:02:59]}  exd5 {[%clk 0:02:57]} 6. Bf4 {[%clk 0:02:59]}  Bd6 {[%clk 0:02:55]} 7. Be5 {[%clk 0:02:49]}  O-O {[%clk 0:02:46]} 8. e3 {[%clk 0:02:47]}  c6 {[%clk 0:02:18]} 9. Bd3 {[%clk 0:02:40]}  Bg4 {[%clk 0:02:18]} 10. h3 {[%clk 0:02:37]}  Bxf3 {[%clk 0:02:12]} 11. Qxf3 {[%clk 0:02:38]}  Re8 {[%clk 0:02:11]} 12. Qf5 {[%clk 0:02:03]}  Na6 {[%clk 0:01:19]} 13. O-O-O {[%clk 0:01:50]}  Bb4 {[%clk 0:01:16]} 14. Na4 {[%clk 0:01:37]}  Re6 {[%clk 0:00:59]} 15. a3 {[%clk 0:01:13]}  Be7 {[%clk 0:00:53]} 16. Nc3 {[%clk 0:01:06]}  g6 {[%clk 0:00:52]} 17. Qf4 {[%clk 0:01:01]}  Nd7 {[%clk 0:00:44]} 18. Qxh6 {[%clk 0:00:59]}  Nxe5 {[%clk 0:00:45]} 19. dxe5 {[%clk 0:00:28]}  Bg5 {[%clk 0:00:44]} 0-1

[Event "December 12 Early 2023"]
[Site "https://www.chess.com"]
[Date "2023.12.12"]
[Round "9"]
[White "Al-Tarboush, Ward"]
[Black "Dmitrenko, Viktor"]
[Result "1-0"]
[Board "79"]
[TimeControl "180+1"]
[WhiteFideId "7601450"]
[BlackFideId "14110270"]
[WhiteElo "2597"]
[BlackElo "2458"]
[WhiteTeam "NOR"]
[BlackTeam "UKR"]
[WhiteClock "0:00:47"]
[BlackClock "0:00:00"]

1. e4 {[%clk 0:03:00]}  c5 {[%clk 0:02:55]} 2. Nf3 {[%clk 0:03:01]}  e6 {[%clk 0:02:53]} 3. d4 {[%clk 0:03:01]}  cxd4 {[%clk 0:02:53]} 4. Nxd4 {[%clk 0:03:02]}  Nc6 {[%clk 0:02:51]} 5. Nc3 {[%clk 0:03:03]}  Nf6 {[%clk 0:02:47]} 6. Bf4 {[%clk 0:03:03]}  Bc5 {[%clk 0:02:44]} 7. Ndb5 {[%clk 0:02:59]}  O-O {[%clk 0:02:41]} 8. e5 {[%clk 0:02:57]}  Ne8 {[%clk 0:02:03]} 9. Ne4 {[%clk 0:02:54]}  Be7 {[%clk 0:01:51]} 10. Bd3 {[%clk 0:02:47]}  f5 {[%clk 0:01:45]} 11. exf6 {[%clk 0:02:40]}  Nxf6 {[%clk 0:01:42]} 12. Bc7 {[%clk 0:02:19]}  Qe8 {[%clk 0:01:41]} 13. Ned6 {[%clk 0:02:15]}  Qh5 {[%clk 0:01:34]} 14. Qxh5 {[%clk 0:02:14]}  Nxh5 {[%clk 0:01:33]} 15. O-O-O {[%clk 0:02:01]}  a6 {[%clk 0:01:29]} 16. Nc3 {[%clk 0:01:52]}  Rxf2 {[%clk 0:01:15]} 17. g4 {[%clk 0:01:40]}  Nf4 {[%clk 0:01:09]} 18. Nce4 {[%clk 0:01:38]}  Nxd3+ {[%clk 0:01:06]} 19. Rxd3 {[%clk 0:01:37]}  Rf8 {[%clk 0:01:04]} 20. Bb6 {[%clk 0:01:36]}  a5 {[%clk 0:00:50]} 21. Nc5 {[%clk 0:01:30]}  Nb4 {[%clk 0:00:45]} 22. Rdd1 {[%clk 0:01:22]}  Nd5 {[%clk 0:00:44]} 23. Nxc8 {[%clk 0:01:09]}  Rfxc8 {[%clk 0:00:17]} 24. Nxd7 {[%clk 0:01:10]}  Rc6 {[%clk 0:00:16]} 25. Bd4 {[%clk 0:01:07]}  Rac8 {[%clk 0:00:15]} 26. c3 {[%clk 0:01:08]}  Bg5+ {[%clk 0:00:12]} 27. Kb1 {[%clk 0:01:08]}  b5 {[%clk 0:00:12]} 28. Ne5 {[%clk 0:01:08]}  Ra6 {[%clk 0:00:11]} 29. h4 {[%clk 0:01:07]}  Be7 {[%clk 0:00:10]} 30. Rhf1 {[%clk 0:01:06]}  b4 {[%clk 0:00:09]} 31. c4 {[%clk 0:01:00]}  Nf6 {[%clk 0:00:09]} 32. g5 {[%clk 0:00:59]}  Ne4 {[%clk 0:00:09]} 33. g6 {[%clk 0:00:57]}  hxg6 {[%clk 0:00:08]} 34. Nxg6 {[%clk 0:00:57]}  Bf8 {[%clk 0:00:07]} 35. h5 {[%clk 0:00:51]}  Nc5 {[%clk 0:00:00]} 36. Nxf8 {[%clk 0:00:47]} 1-0

[Event "December 12 Early 2023"]
[Site "https://www.chess.com"]
[Date "2023.12.12"]
[Round "9"]
[White "Iskusnyh, Sergei"]
[Black "YurasovMat-2012"]
[Result "1-0"]
[Board "80"]
[TimeControl "180+1"]
[WhiteFideId "4120027"]
[WhiteElo "2575"]
[BlackElo "2458"]
[WhiteTeam "RUS"]
[WhiteClock "0:00:15"]
[BlackClock "0:00:00"]

1. d4 {[%clk 0:03:00]}  d5 {[%clk 0:02:59]} 2. c4 {[%clk 0:03:00]}  c6 {[%clk 0:02:58]} 3. Nf3 {[%clk 0:03:00]}  Nf6 {[%clk 0:02:58]} 4. e3 {[%clk 0:03:00]}  Bf5 {[%clk 0:02:56]} 5. Nc3 {[%clk 0:02:58]}  e6 {[%clk 0:02:56]} 6. Nh4 {[%clk 0:02:56]}  Be4 {[%clk 0:02:55]} 7. f3 {[%clk 0:02:53]}  Bg6 {[%clk 0:02:55]} 8. Bd2 {[%clk 0:02:49]}  Nbd7 {[%clk 0:02:50]} 9. Nxg6 {[%clk 0:02:40]}  hxg6 {[%clk 0:02:49]} 10. Qc2 {[%clk 0:02:40]}  Bd6 {[%clk 0:02:46]} 11. O-O-O {[%clk 0:02:36]}  Rc8 {[%clk 0:02:45]} 12. c5 {[%clk 0:02:30]}  Bc7 {[%clk 0:02:43]} 13. e4 {[%clk 0:02:23]}  dxe4 {[%clk 0:02:40]} 14. Nxe4 {[%clk 0:02:00]}  Nxe4 {[%clk 0:02:28]} 15. fxe4 {[%clk 0:01:59]}  O-O {[%clk 0:02:22]} 16. h4 {[%clk 0:01:57]}  b6 {[%clk 0:01:49]} 17. cxb6 {[%clk 0:01:49]}  axb6 {[%clk 0:01:46]} 18. h5 {[%clk 0:01:44]}  g5 {[%clk 0:01:46]} 19. Bc3 {[%clk 0:01:24]}  c5 {[%clk 0:01:42]} 20. dxc5 {[%clk 0:01:21]}  Bf4+ {[%clk 0:01:37]} 21. Kb1 {[%clk 0:01:20]}  Rxc5 {[%clk 0:01:36]} 22. Qd3 {[%clk 0:01:20]}  Rc7 {[%clk 0:01:17]} 23. h6 {[%clk 0:01:19]}  f6 {[%clk 0:01:06]} 24. hxg7 {[%clk 0:01:13]}  Kxg7 {[%clk 0:01:07]} 25. e5 {[%clk 0:00:54]}  f5 {[%clk 0:00:26]} 26. g3 {[%clk 0:00:50]}  Rxc3 {[%clk 0:00:19]} 27. Qxc3 {[%clk 0:00:45]}  Bxe5 {[%clk 0:00:18]} 28. Rxd7+ {[%clk 0:00:43]}  Qxd7 {[%clk 0:00:18]} 29. Qxe5+ {[%clk 0:00:42]}  Kg6 {[%clk 0:00:19]} 30. Bc4 {[%clk 0:00:26]}  Re8 {[%clk 0:00:18]} 31. g4 {[%clk 0:00:24]}  Qc6 {[%clk 0:00:16]} 32. Rc1 {[%clk 0:00:20]}  Qf3 {[%clk 0:00:03]} 33. gxf5+ {[%clk 0:00:18]}  Qxf5+ {[%clk 0:00:02]} 34. Qxf5+ {[%clk 0:00:17]}  exf5 {[%clk 0:00:02]} 35. Bb5 {[%clk 0:00:16]}  Re2 {[%clk 0:00:00]} 36. Bxe2 {[%clk 0:00:15]} 1-0